[Event "FTX Crypto Cup MCCT 2022"]
[Site "Miami"]
[Date "2022.08.11"]
[Round "2.3"]
[White "Duda, Jan-Krzysztof"]
[Black "Aronian, Levon"]
[Result "1/2-1/2"]
[ECO "C55"]
[WhiteElo "2750"]
[BlackElo "2775"]
[Annotator "TA"]
[PlyCount "68"]
[EventDate "2022.08.10"]
[EventType "tourn"]
[EventCountry "USA"]
[SourceTitle "playchess.com"]
[Source "ChessBase"]
[SourceQuality "1"]
[TimeControl "900+10"]

{[%evp 11,68,12,14,11,31,26,25,24,27,16,15,12,19,13,45,35,70,22,28,18,25,14,22,6,7,0,23,0,0,0,0,0,0,-6,0,0,0,0,0,0,0,0,4,4,10,0,12,5,14,14,14,0,0,0,14,0,11,0,0]} 1. e4 {[%emt 0:00:00]} e5 {[%emt 0:00:00]} 2. Nf3 {[%emt 0:00:02]} Nc6 {[%emt 0:00:03]} 3. Bc4 {[%emt 0:00:01]} Nf6 {[%emt 0:00:02]} 4. d3 {[%emt 0:00:01]} Be7 {[%emt 0:00:01]} 5. Nc3 {[%emt 0:00:04]} O-O {[%emt 0:00:03]} 6. O-O {[%emt 0:00:02]} d6 {[%emt 0:00:01]} 7. a4 $1 {[%emt 0:00:02][%mdl 4] 7.a4 is a critical line. C55: Two Knights: 4 d3, 4 d4 exd4 5 e5 and Max Lange Attack.} Na5 {[%emt 0:00:01]} 8. Ba2 {[%emt 0:00:02]} c5 {[%emt 0:00:01]} 9. Bg5 {[%emt 0:00:50] White has an edge.} Nc6 {[%emt 0:00:08]} 10. Bxf6 {[%emt 0:00:10]} Bxf6 {[%emt 0:00:00]} 11. Nd5 {[%emt 0:00:01]} g6 {[%emt 0:00:02]} 12. c3 {[%emt 0:00:03] [#]} a5 $146 {[%emt 0:00:01]} ({Predecessor:} 12... Bg7 13. h3 Be6 14. Qd2 Ne7 15. Nxe7+ Qxe7 16. b4 cxb4 17. cxb4 Rfd8 18. Bxe6 Qxe6 {½-½ (48) Vykouk,J (2476)-Malinovsky,K (2463) Ceske Budejovice 2022}) 13. Nd2 {[%emt 0:00:14] Pair of Knights!} Be6 {[%emt 0:00:38]} 14. Re1 {[%emt 0:02:39]} ({White should try} 14. f4 $14) 14... Bg5 $11 {[%emt 0:00:16]} 15. Nf1 {[%emt 0:00:04]} Kg7 {[%emt 0:00:14]} 16. Bc4 {[%emt 0:00:11]} Ne7 {[%emt 0:00:38]} 17. Nxe7 {[%emt 0:00:12]} Qxe7 {[%emt 0:00:08]} 18. Qb3 {[%emt 0:00:11]} Rab8 {[%emt 0:00:20]} 19. Rad1 {[%emt 0:01:01]} Bg4 {[%emt 0:00:30] The position is equal.} 20. f3 {[%emt 0:00:04]} Bd7 {[%emt 0:00:01]} 21. Ne3 {[%emt 0:00:32]} Qe8 {[%emt 0:00:19]} 22. Ra1 {[%emt 0:00:15]} Qd8 {[%emt 0:01:12]} 23. Nd5 {[%emt 0:00:11]} Bc6 {[%emt 0:00:24]} 24. Qb6 {[%emt 0:00:34]} Qxb6 {[%emt 0:01:07]} 25. Nxb6 {[%emt 0:00:00]} Bd8 {[%emt 0:00:01]} 26. Nd5 {[%emt 0:00:04]} f5 {[%emt 0:00:01]} 27. Kf1 {[%emt 0:01:28]} h5 {[%emt 0:00:20]} 28. Ke2 {[%emt 0:00:03]} h4 {[%emt 0:00:01]} 29. h3 {[%emt 0:00:50]} Kh6 {[%emt 0:00:32]} 30. Reb1 {[%emt 0:00:32]} Ra8 {[%emt 0:00:02]} 31. Ne3 {[%emt 0:00:09]} Bg5 {[%emt 0:00:09]} 32. Nd5 {[%emt 0:00:03]} Bd8 {[%emt 0:00:02] Inhibits Nb6.} 33. Ne3 {[%emt 0:00:12]} Bg5 {[%emt 0:00:02]} 34. Nd5 {[%emt 0:00:01]} Bd8 {[%emt 0:00:01] Weighted Error Value: White=0.07 (flawless) /Black=0.05 (flawless)} 1/2-1/2

[Event "FTX Crypto Cup MCCT 2022"]
[Site "Miami"]
[Date "2022.08.11"]
[Round "2.3"]
[White "Praggnanandhaa R"]
[Black "Giri, Anish"]
[Result "1/2-1/2"]
[ECO "C77"]
[WhiteElo "2648"]
[BlackElo "2760"]
[Annotator "TA"]
[PlyCount "138"]
[EventDate "2022.08.10"]
[EventType "tourn"]
[EventCountry "USA"]
[SourceTitle "playchess.com"]
[Source "ChessBase"]
[SourceQuality "1"]
[TimeControl "900+10"]

{[%evp 10,138,18,0,23,25,25,20,21,25,40,28,25,10,24,13,5,9,10,17,10,18,17,17,17,12,22,0,0,0,0,0,4,6,9,0,0,0,0,0,0,0,0,0,0,0,0,0,0,0,6,6,6,0,0,0,0,0,0,0,0,0,0,0,0,0,0,0,0,0,557,516,419,0,0,0,0,0,0,0,0,0,0,0,0,0,0,0,0,0,0,0,0,0,0,0,0,0,34,0,0,0,1745,1589,1471,0,0,0,1211,0,542,0,0,0,0,0,0,0,0,0,0,0,0,0,0,0,0,0,0,0,0]} 1. e4 {[%emt 0:00:00]} e5 {[%emt 0:00:00]} 2. Nf3 {[%emt 0:00:02]} Nc6 {[%emt 0:00:02]} 3. Bb5 {[%emt 0:00:00]} a6 {[%emt 0:00:01]} 4. Ba4 {[%emt 0:00:01]} Nf6 {[%emt 0:00:00]} 5. d3 {[%emt 0:00:00][%cal Bd2d3,Bd3d4][%mdl 32]} Bc5 {[%emt 0:00:02]} 6. c3 {[%emt 0:00:03]} O-O {[%emt 0:00:01] C77: Ruy Lopez: 3...a6 4 Ba4 Nf6, unusual lines.} 7. Bxc6 {[%emt 0:00:02]} bxc6 {[%emt 0:00:00]} 8. Nxe5 {[%emt 0:00:01]} d5 {[%emt 0:00:05]} 9. d4 {[%emt 0:00:02]} (9. Nxc6 Qd6 10. Nd4 Re8) 9... Bb6 {[%emt 0:00:01]} 10. O-O {[%emt 0:00:03]} dxe4 {[%emt 0:00:09]} 11. Bg5 {[%emt 0:00:13]} h6 {[%emt 0:00:03]} 12. Bxf6 {[%emt 0:00:06]} Qxf6 {[%emt 0:00:00]} 13. Nd2 {[%emt 0:00:01]} c5 {[%emt 0:00:05]} 14. Nxe4 {[%emt 0:00:14] Pair of Knights!} Qe6 {[%emt 0:00:00] [#] aiming for ...cxd4.} 15. Re1 {[%emt 0:00:14]} cxd4 {[%emt 0:00:33]} 16. cxd4 {[%emt 0:00:05]} Rd8 {[%emt 0:00:02]} 17. Nf3 {[%emt 0:00:09]} (17. Nc5 {is more complex.} Bxc5 18. Qf3 Bb7 19. Qxb7 Bxd4 20. Nc6) 17... Qf5 {[%emt 0:00:10]} 18. Rc1 {[%emt 0:01:37]} Bb7 {[%emt 0:00:29]} 19. Qc2 {[%emt 0:00:15]} a5 {[%emt 0:03:53]} 20. h3 {[%emt 0:00:22]} Re8 {[%emt 0:03:47]} 21. Nc5 {[%emt 0:00:31]} Qxc2 {[%emt 0:00:04] [#]} 22. Rxc2 $146 {[%emt 0:00:37]} ({Predecessor:} 22. Rxe8+ Rxe8 23. Rxc2 {½-½ (23) Verst,P (2378)-Gierden,H (2342) ICCF email 2018}) 22... Bxf3 {[%emt 0:00:04]} 23. Rxe8+ {[%emt 0:00:02]} Rxe8 {[%emt 0:00:00]} 24. gxf3 $11 {[%emt 0:00:01][%mdl 4096] Endgame KRB-KRN} Re1+ {[%emt 0:00:00]} 25. Kg2 {[%emt 0:00:08]} Rd1 {[%emt 0:00:02]} 26. Na6 {[%emt 0:01:37]} Rxd4 {[%emt 0:00:02]} 27. Nxc7 {[%emt 0:00:02]} Bxc7 {[%emt 0:00:01]} 28. Rxc7 {[%emt 0:00:01] KR-KR} g5 {[%emt 0:01:08]} 29. Rb7 {[%emt 0:03:29]} Kg7 {[%emt 0:01:18]} 30. Rb5 {[%emt 0:00:34]} Rd2 {[%emt 0:02:14]} 31. a4 {[%emt 0:03:38]} Kg6 {[%emt 0:00:04]} 32. f4 {[%emt 0:02:53]} gxf4 {[%emt 0:00:12]} 33. Kf3 {[%emt 0:00:20]} (33. Rxa5 Rxb2 34. Kf3 h5 $11) 33... f6 {[%emt 0:01:00]} 34. h4 {[%emt 0:00:49]} h5 {[%emt 0:00:02]} 35. b3 {[%emt 0:00:14]} (35. Rxa5 Rxb2 36. Rb5 (36. Kxf4 Rxf2+ 37. Kg3 Ra2 $11) 36... Ra2 $14) 35... Rb2 {[%emt 0:01:30]} 36. Kg2 {[%emt 0:00:24]} (36. b4 $5) 36... Rb1 {[%emt 0:01:44]} 37. Rb8 {[%emt 0:00:10]} Kf5 {[%emt 0:00:16]} 38. Kf3 {[%emt 0:00:08]} Rb2 {[%emt 0:00:18]} 39. Rb6 {[%emt 0:00:04]} Ke5 $2 {[%emt 0:01:05][%mdl 8192]} (39... Kg6 $11 {and Black stays safe.}) 40. Rb5+ $18 {[%emt 0:00:09]} Ke6 {[%emt 0:00:01]} 41. Rb6+ $2 {[%emt 0:01:54]} ({Only move:} 41. Rxh5 $18 f5 42. Rh6+ (42. Kxf4 Rxf2+ 43. Ke3 Rg2 $14) 42... Ke7 43. Rb6 (43. Kxf4 Rxf2+ 44. Kg5 f4 $18)) 41... Kf5 $11 {[%emt 0:00:07]} 42. Rb8 {[%emt 0:00:08]} Kg6 {[%emt 0:00:52]} 43. Rb5 {[%emt 0:00:03]} Rc2 {[%emt 0:00:00]} 44. Rxa5 {[%emt 0:00:42]} Rc3+ {[%emt 0:00:00]} 45. Kxf4 {[%emt 0:00:01]} Rxb3 {[%emt 0:00:01]} 46. f3 {[%emt 0:00:01] Hoping for Rb5.} Rb4+ {[%emt 0:00:10]} 47. Kg3 {[%emt 0:00:02]} Kf7 {[%emt 0:00:29]} 48. Ra8 {[%emt 0:00:36]} ({Much less strong is} 48. Rxh5 $6 Rxa4 49. Rc5 Ra1 $16) 48... Ke6 {[%emt 0:00:07]} 49. Re8+ {[%emt 0:00:17]} Kf5 $1 {[%emt 0:00:07]} 50. Re4 {[%emt 0:00:06]} Rb3 {[%emt 0:00:19]} (50... Rxe4 51. fxe4+ Kxe4 52. a5 Kd5 53. Kf4 Kd6 54. Kf5 Kd7 55. Kxf6) 51. Rc4 {[%emt 0:00:09]} Ra3 {[%emt 0:00:31]} 52. Rc5+ {[%emt 0:00:09]} Kg6 $1 {[%emt 0:00:12]} 53. a5 {[%emt 0:00:02]} Ra4 {[%emt 0:00:13]} 54. f4 {[%emt 0:00:05] [#] Black must now prevent Kf3.} (54. Rd5 $5 {[%cal Rf3f4]}) 54... Ra3+ {[%emt 0:00:01]} 55. Kg2 {[%emt 0:00:02]} Ra4 $2 {[%emt 0:00:26][%mdl 8192]} (55... Kh6 $11) 56. Kf3 $18 {[%emt 0:00:02]} Kh6 {[%emt 0:00:06]} 57. Kg3 $2 {[%emt 0:00:33]} (57. Ke3 $18 Ra3+ 58. Kd4) 57... Kg6 $11 {[%emt 0:00:10]} 58. Rd5 {[%emt 0:00:13] Threatens to win with Kf3.} Kh6 $2 {[%emt 0:00:11][%mdl 8192]} (58... Ra3+ $11 59. Kf2 Kh6) 59. Rb5 $2 {[%emt 0:00:15]} (59. Kf3 $18 {And now Ke3 would win.} Kg6 60. Ke3) 59... Kg6 $2 {[%emt 0:00:02][%mdl 8192]} (59... Ra3+ $1 $11 60. Kf2 Rh3) 60. f5+ $2 {[%emt 0:00:08]} ({White must play} 60. Kf3 $18 Ra3+ 61. Ke4) 60... Kh6 {[%emt 0:00:05] The position is equal.} 61. Rb6 {[%emt 0:00:01]} Ra3+ {[%emt 0:00:23]} 62. Kg2 {[%emt 0:00:05]} Rxa5 {[%emt 0:00:11]} 63. Rxf6+ {[%emt 0:00:02]} Kg7 {[%emt 0:00:01]} 64. Rg6+ {[%emt 0:00:12]} Kf7 {[%emt 0:00:00]} 65. Rg5 {[%emt 0:00:02]} Kf6 {[%emt 0:00:01]} 66. Rxh5 {[%emt 0:00:01]} Rxf5 {[%emt 0:00:00]} 67. Rxf5+ {[%emt 0:00:06]} Kxf5 {[%emt 0:00:01]} 68. h5 {[%emt 0:00:00]} Kg5 {[%emt 0:00:01]} 69. h6 {[%emt 0:00:00] h7 is the strong threat.} Kxh6 {[%emt 0:00:01] Weighted Error Value: White=0.36/Black=0.26 (precise)} 1/2-1/2

[Event "FTX Crypto Cup MCCT 2022"]
[Site "Miami"]
[Date "2022.08.11"]
[Round "2.4"]
[White "Aronian, Levon"]
[Black "Duda, Jan-Krzysztof"]
[Result "1/2-1/2"]
[ECO "D02"]
[WhiteElo "2775"]
[BlackElo "2750"]
[Annotator "TA"]
[PlyCount "109"]
[EventDate "2022.08.10"]
[EventType "tourn"]
[EventCountry "USA"]
[SourceTitle "playchess.com"]
[Source "ChessBase"]
[SourceQuality "1"]
[TimeControl "900+10"]

{[%evp 10,108,22,20,21,16,22,18,14,18,12,8,17,-7,-7,-3,4,-18,0,0,0,2,10,1,49,49,71,50,51,36,36,35,34,30,34,28,27,18,20,21,30,18,18,18,19,15,21,29,24,13,13,13,13,13,13,13,13,13,13,13,13,13,13,13,13,13,13,13,13,13,13,0,0,0,0,0,0,0,0,0,0,0,0,0,0,0,0,0,0,0,0,0,0,0,0,0,0,0,0,0,0]} 1. d4 {[%emt 0:00:00]} d5 {[%emt 0:00:00]} 2. Nf3 {[%emt 0:00:03]} Nf6 {[%emt 0:00:03]} 3. c3 {[%emt 0:00:01]} e6 {[%emt 0:01:14]} 4. Bf4 {[%emt 0:00:04]} c5 {[%emt 0:00:02]} 5. e3 {[%emt 0:00:04]} Qb6 {[%emt 0:00:05]} 6. Qb3 {[%emt 0:00:17]} Be7 {[%emt 0:01:07] D02: 1 d4 d5 2 Nf3 sidelines, including 2...Nf6 3 g3 and 2...Nf6 3 Bf4.} 7. Nbd2 {[%emt 0:00:06]} O-O {[%emt 0:00:48]} 8. Be2 {[%emt 0:00:02]} Bd7 {[%emt 0:00:26]} 9. O-O {[%emt 0:00:06]} Rc8 {[%emt 0:00:05]} 10. Ne5 {[%emt 0:00:39] [#]} Be8 $146 {[%emt 0:00:29]} ({Predecessor:} 10... Nc6 11. Qxb6 axb6 12. Nxd7 Nxd7 13. a3 Bd8 14. Rad1 {½-½ (14) Jakubowski,K (2481)-Janik,I (2471) Warsaw 2020}) 11. Bg5 {[%emt 0:00:03]} h6 {[%emt 0:00:16]} 12. Bh4 {[%emt 0:00:03]} Nc6 {[%emt 0:00:06][%cal Rc5d4]} 13. f4 {[%emt 0:00:05]} cxd4 {[%emt 0:00:15]} (13... Qc7 {feels hotter.} 14. Nxc6 Bxc6 15. Bxf6 Bxf6 16. Nf3 Be8) 14. Qxb6 {[%emt 0:00:03]} axb6 {[%emt 0:00:00]} 15. exd4 {[%emt 0:00:05]} Ne4 {[%emt 0:00:34]} 16. Nxe4 {[%emt 0:00:32]} Bxh4 {[%emt 0:00:19]} (16... dxe4 $11 17. Nxc6 Bxh4) 17. Nd6 $14 {[%emt 0:00:03][%csl LRb7,LRc8] Pair of Knights!} Rc7 {[%emt 0:00:26]} 18. Nxe8 {[%emt 0:00:51] 0x0.0002da4f8648dp-1022s more active pieces.} Rxe8 {[%emt 0:00:00]} 19. Bb5 {[%emt 0:00:25]} Ra8 {[%emt 0:00:39]} 20. a3 {[%emt 0:00:02]} g6 {[%emt 0:00:30]} 21. g4 {[%emt 0:00:32]} Nxe5 {[%emt 0:01:05]} 22. fxe5 {[%emt 0:00:02]} Kg7 {[%emt 0:00:07]} 23. Rf3 {[%emt 0:00:02]} Rf8 {[%emt 0:00:11]} 24. Kg2 {[%emt 0:00:09]} f6 {[%emt 0:00:29]} 25. exf6+ {[%emt 0:01:09]} Rxf6 {[%emt 0:00:00]} 26. Rxf6 {[%emt 0:00:02]} Kxf6 $11 {[%emt 0:00:04][%mdl 4096] Endgame KRB-KRB} 27. Kh3 {[%emt 0:00:29]} Kg5 {[%emt 0:02:40]} 28. Rf1 {[%emt 0:00:02] Against Rf7. Black should prevent Be8.} Re7 {[%emt 0:00:02] Against Be8} 29. Bd3 {[%emt 0:00:03][%cal Od3g6] Threatens to win with Bxg6!} e5 {[%emt 0:00:06] [#] The position is equal.} 30. Bxg6 $1 {[%emt 0:00:01] Bh5 would kill now.} exd4 {[%emt 0:00:21]} 31. Rf5+ {[%emt 0:00:13]} Kxg6 {[%emt 0:00:01]} 32. Kxh4 {[%emt 0:00:00]} dxc3 {[%emt 0:00:14]} 33. bxc3 {[%emt 0:00:03] KR-KR} Re3 {[%emt 0:00:26]} 34. Rxd5 {[%emt 0:00:10] [#] Rd6+ is the strong threat.} Rxc3 {[%emt 0:00:02]} 35. Rd6+ {[%emt 0:00:50]} Kg7 {[%emt 0:00:03]} 36. Rxb6 {[%emt 0:00:01]} Rxa3 {[%emt 0:00:01]} 37. Rxb7+ {[%emt 0:00:00]} Kg6 {[%emt 0:00:01]} 38. Rb6+ {[%emt 0:00:01]} Kg7 {[%emt 0:00:00]} 39. Rb1 {[%emt 0:00:00]} Kg6 {[%emt 0:00:02]} 40. Rg1 {[%emt 0:00:01]} Ra2 {[%emt 0:00:11]} 41. h3 {[%emt 0:00:12][%cal Bh2h3,Bh3g4,Bg4g5,Bg5g6,Bg6g7][%mdl 32]} h5 {[%emt 0:00:15]} 42. Rg3 {[%emt 0:00:00]} hxg4 {[%emt 0:00:02]} 43. hxg4 {[%emt 0:00:05]} Rh2+ {[%emt 0:00:04]} 44. Rh3 {[%emt 0:00:01]} Rxh3+ {[%emt 0:00:02]} 45. Kxh3 {[%emt 0:00:01] KP-K} Kg5 {[%emt 0:00:01]} 46. Kg3 {[%emt 0:00:00]} Kg6 {[%emt 0:00:00]} 47. Kh4 {[%emt 0:00:00]} Kh6 {[%emt 0:00:01]} 48. g5+ {[%emt 0:00:00]} Kg6 {[%emt 0:00:00]} 49. Kg4 {[%emt 0:00:00]} Kg7 {[%emt 0:00:01]} 50. Kf5 {[%emt 0:00:00]} Kf7 {[%emt 0:00:00]} 51. g6+ {[%emt 0:00:00]} Kg7 {[%emt 0:00:01]} 52. Kg5 {[%emt 0:00:00]} Kg8 {[%emt 0:00:01]} 53. Kh6 {[%emt 0:00:00] White threatens g7 and mate.} Kh8 {[%emt 0:00:00]} 54. g7+ {[%emt 0:00:00]} Kg8 {[%emt 0:00:01]} 55. Kg6 {[%emt 0:00:00] Weighted Error Value: White=0.04 (flawless) /Black=0.03 (flawless)} 1/2-1/2

[Event "FTX Crypto Cup MCCT 2022"]
[Site "Miami"]
[Date "2022.08.11"]
[Round "2.4"]
[White "Giri, Anish"]
[Black "Praggnanandhaa R"]
[Result "0-1"]
[ECO "E53"]
[WhiteElo "2760"]
[BlackElo "2648"]
[Annotator "TA"]
[PlyCount "162"]
[EventDate "2022.08.10"]
[EventType "tourn"]
[EventCountry "USA"]
[SourceTitle "playchess.com"]
[Source "ChessBase"]
[SourceQuality "1"]
[TimeControl "900+10"]

{[%evp 18,162,0,0,0,0,19,8,14,20,22,15,0,0,12,10,21,27,14,17,18,12,14,24,13,-81,-86,-90,-93,-81,-73,-82,-79,-98,-95,-97,-111,-116,-109,-116,-98,-128,-127,-125,-136,-127,-96,-110,-116,-122,-113,-147,-161,-156,-135,-209,-212,-202,-171,-227,-234,-236,-245,-379,-296,-383,-217,-528,-529,-564,-557,-535,-432,-417,-417,-822,-616,-604,-342,-355,-340,-347,-347,-354,-357,-357,-356,-352,-331,-348,0,-349,-349,-348,-348,-331,-331,-323,-267,-453,-446,-441,-337,-421,-427,-420,-342,-334,-327,-319,-311,-311,-304,-304,-304,-296,-267,-427,-428,-415,-414,-364,-252,-536,-525,-29979,-29980,-29981,-29979,-29980,-5081,-29939,-8781,-29976,-29978,-29978,-29979,-29979,-29980,-29980,-29981,-29981,-29982,-29982,-29983,-29988,-29989]} 1. d4 {[%emt 0:00:00]} Nf6 {[%emt 0:00:00]} 2. c4 {[%emt 0:00:07]} e6 {[%emt 0:00:02]} 3. Nc3 {[%emt 0:00:03]} Bb4 {[%emt 0:00:02]} 4. e3 {[%emt 0:00:01]} O-O {[%emt 0:00:01]} 5. Bd3 {[%emt 0:00:01]} d5 {[%emt 0:00:01]} 6. a3 {[%emt 0:00:00]} Bxc3+ {[%emt 0:00:01]} 7. bxc3 {[%emt 0:00:00]} dxc4 {[%emt 0:00:00]} 8. Bxc4 {[%emt 0:00:00]} c5 {[%emt 0:00:01]} 9. Nf3 {[%emt 0:00:01]} Qc7 {[%emt 0:00:01]} 10. Be2 {[%emt 0:00:01]} b6 {[%emt 0:00:01] E53: Nimzo-Indian: Rubinstein: Main Line (4...0-0 5 Nf3 d5 6 Bd3 c5 7 0-0).} 11. Bb2 {[%emt 0:00:03] outshines the older 11.0-0.} cxd4 $5 {[%emt 0:00:16][%mdl 4] A promising side line.} 12. cxd4 {[%emt 0:00:01]} Ba6 {[%emt 0:00:01] The position is equal.} 13. O-O {[%emt 0:00:11] [#]} Qb7 $5 $146 {[%emt 0:00:52][%mdl 8] New and interesting.} ({Predecessor:} 13... Bxe2 14. Qxe2 Nbd7 15. e4 Rac8 16. Rfc1 Qb7 17. Re1 h6 18. Rab1 Rc7 19. Nd2 Rfc8 {1-0 (67) Erigaisi,A (2675)-Aryan,C (2609) Sharjah 2022}) 14. Re1 {[%emt 0:00:35]} Bxe2 {[%emt 0:00:41]} 15. Qxe2 {[%emt 0:00:01]} Nbd7 {[%emt 0:00:59]} 16. e4 {[%emt 0:00:06]} Rac8 {[%emt 0:00:05]} 17. h3 {[%emt 0:00:10]} b5 {[%emt 0:00:32]} 18. Rad1 {[%emt 0:01:01]} h6 {[%emt 0:00:31]} 19. Nh2 {[%emt 0:00:21]} b4 {[%emt 0:03:54]} 20. axb4 {[%emt 0:01:21]} Qxb4 {[%emt 0:00:03]} 21. Rd3 {[%emt 0:01:45] [#]} (21. Bc1 $11) 21... Rc2 $1 $17 {[%emt 0:00:56]} 22. Ba3 {[%emt 0:02:56]} Rxe2 {[%emt 0:00:19] 0x0.00236438f2f8dp-1022s more active pieces.} 23. Bxb4 {[%emt 0:00:02]} Rxe1+ {[%emt 0:00:03]} 24. Bxe1 {[%emt 0:00:00]} Nxe4 {[%emt 0:00:01]} 25. d5 {[%emt 0:00:07]} Ndc5 {[%emt 0:01:59]} 26. Ra3 {[%emt 0:00:48]} exd5 {[%emt 0:00:33]} 27. f3 {[%emt 0:00:09]} Ng5 {[%emt 0:00:13]} 28. Rxa7 {[%emt 0:00:36]} Rc8 {[%emt 0:01:17]} 29. Ra1 {[%emt 0:00:20]} Nge6 {[%emt 0:00:22]} 30. Rd1 {[%emt 0:00:24]} d4 {[%emt 0:00:08]} 31. Ng4 {[%emt 0:00:14]} Rb8 {[%emt 0:02:07]} 32. Bg3 {[%emt 0:01:08]} Rb3 {[%emt 0:00:15]} 33. Nf2 {[%emt 0:00:08]} Na4 {[%emt 0:00:31]} 34. Kf1 {[%emt 0:00:31]} Nc3 {[%emt 0:00:15] Pair of Knights!} 35. Ra1 {[%emt 0:00:06]} Kh7 {[%emt 0:00:13]} 36. Bd6 {[%emt 0:00:50]} (36. h4 $17) 36... Nd5 $19 {[%emt 0:00:24]} 37. Kg1 {[%emt 0:00:25]} Kg6 {[%emt 0:00:08]} 38. Re1 {[%emt 0:00:58]} (38. Nd1 $142) 38... h5 {[%emt 0:00:16][%cal Bh6h5,Bh5h4][%mdl 32]} 39. Be5 {[%emt 0:00:40]} Ne3 {[%emt 0:00:54]} 40. Ne4 {[%emt 0:00:47]} (40. Bd6 {is a better defense.}) 40... h4 {[%emt 0:00:17]} 41. Nf2 {[%emt 0:01:59]} Nc4 {[%emt 0:00:18]} (41... Kf5 $142 42. Bd6 Nf4 43. Bxf4 Kxf4) 42. Bh2 {[%emt 0:00:25]} (42. Bxd4 {nothing else works.} Nxd4 43. Re4) 42... d3 {[%emt 0:00:20][%cal Bd4d3,Bd3d2][%mdl 32]} 43. Ne4 {[%emt 0:00:02]} d2 {[%emt 0:00:17][%cal Rd2e1]} 44. Rd1 {[%emt 0:00:03]} Rd3 {[%emt 0:00:06]} 45. Kf1 {[%emt 0:00:49]} f5 {[%emt 0:00:46]} 46. Nf2 {[%emt 0:00:02]} (46. Nxd2 $142 Rxd2 47. Rxd2 Nxd2+ 48. Ke1) 46... Rd7 {[%emt 0:00:26]} 47. Ra1 {[%emt 0:00:11]} Ne3+ {[%emt 0:00:45]} 48. Ke2 {[%emt 0:00:00]} Nd4+ {[%emt 0:00:37]} ({Wrong is} 48... Nxg2 $2 49. Rg1 Nd4+ 50. Kf1 (50. Kd1 $2 Nxf3 51. Rxg2+ Kh5 $19) 50... Nxf3 51. Rxg2+ Kf6 52. Nd1 $19) 49. Kxd2 {[%emt 0:00:01]} Nb3+ {[%emt 0:00:04]} ({Don't go for} 49... Nxg2 $2 50. Kc3 $19) 50. Kxe3 {[%emt 0:00:01] Ra6+ is the strong threat.} Nxa1 {[%emt 0:00:01][%mdl 4096] Endgame KRN-KBN} 51. Nd3 {[%emt 0:00:10] aiming for Ne5+.} Nc2+ {[%emt 0:00:03]} 52. Ke2 {[%emt 0:00:01]} Nd4+ {[%emt 0:00:04]} 53. Ke3 {[%emt 0:00:01] Threatens to win with Ne5+.} Nc2+ {[%emt 0:00:24]} 54. Ke2 {[%emt 0:00:02] And now Ne5+ would win.} Kh5 {[%emt 0:00:06]} 55. Nf4+ {[%emt 0:00:21]} Kh6 {[%emt 0:00:04]} 56. Nd3 {[%emt 0:00:13]} Nd4+ {[%emt 0:00:19]} 57. Ke3 {[%emt 0:00:02]} Ne6 {[%emt 0:00:04]} 58. f4 $2 {[%emt 0:00:15]} (58. Be5) 58... Ra7 {[%emt 0:00:08]} 59. Bg1 {[%emt 0:00:01]} Ra3 {[%emt 0:00:16][%cal Oe6f4]} 60. Ke2 {[%emt 0:00:03]} Ra2+ {[%emt 0:00:03]} 61. Kf3 {[%emt 0:00:03]} Kh5 {[%emt 0:00:23]} 62. Be3 {[%emt 0:00:12]} Ra3 {[%emt 0:00:13]} 63. Ke2 {[%emt 0:00:00]} Rb3 {[%emt 0:00:10]} 64. Ne5 {[%emt 0:00:14]} Rb4 {[%emt 0:00:19]} 65. Nd3 {[%emt 0:00:06]} Ra4 {[%emt 0:00:05]} 66. Kf3 {[%emt 0:00:03]} Nc7 {[%emt 0:00:02]} 67. Bd2 {[%emt 0:00:20]} (67. Bc5 $142) 67... Nd5 {[%emt 0:00:06]} 68. Ke2 {[%emt 0:00:31]} Ra2 {[%emt 0:00:09] Hoping for ...Nc3+.} 69. Ke1 {[%emt 0:00:01]} Nf6 {[%emt 0:00:09] Strongly threatening ...Ne4.} 70. Nf2 $2 {[%emt 0:00:18]} (70. Nb4 Rb2 71. Nd3) 70... Ne4 {[%emt 0:00:07]} 71. Nxe4 {[%emt 0:00:16]} fxe4 {[%emt 0:00:01] KR-KB} 72. f5 {[%emt 0:00:50]} Rb2 {[%emt 0:00:01]} 73. Ke2 {[%emt 0:00:16] [#]} Rb5 {[%emt 0:00:05]} (73... Rxd2+ $142 $1 {[%mdl 512]} 74. Kxd2 Kg5 75. Ke3 Kxf5 76. Kf2 Kf4 77. Kf1 e3 78. Ke1 Ke4 79. Kf1 Kd3 80. Kg1 Kd2 81. g3 e2 82. Kf2 e1=Q+ 83. Kf3 hxg3 84. h4 Qe3+ 85. Kg2 Qf2+ 86. Kh3 g2 87. Kg4 g1=Q+ 88. Kh5 Qf7#) 74. Bc3 {[%emt 0:00:27]} Rxf5 {[%emt 0:00:32] ( -> ...Rc5)} 75. Bxg7 {[%emt 0:00:02]} Rg5 {[%emt 0:00:01][%csl LRg2,LRg7] Black mates.} 76. Bd4 {[%emt 0:01:44]} Rxg2+ {[%emt 0:00:02]} 77. Ke3 {[%emt 0:00:01]} Rg3+ {[%emt 0:00:07]} 78. Kxe4 {[%emt 0:00:01]} Rxh3 {[%emt 0:00:01]} 79. Kf4 {[%emt 0:00:00]} Rb3 {[%emt 0:00:13]} 80. Bf2 {[%emt 0:00:20]} h3 {[%emt 0:00:10]} 81. Bg1 {[%emt 0:00:24]} Rb2 {[%emt 0:00:09] Weighted Error Value: White=0.35/Black=0.31} 0-1